{"text_format":"3","workbook":"xlsx","n_sheets":5,"sheets":["разред 6","разред 7п","разред 7","разред 8","разред 8п"],"read":"whole","date_system":"1900"}

{"sheet":"разред 6","index":0,"n_rows":209,"n_cols":13,"rows_kept":209}
[]
[null,"Резултати 6. разред"]
[]
["Р. Бр.","Име и презиме","Основна школа","Место","Име и презиме\nнаставника","Шифра ","Зад.1","Зад.2","Зад.3","Зад.4","Зад.5","Ук.","Награда"]
[1,"Вања Крстајић","\"Раде Драинац\"","Београд","Весна Стојанац",6003,20,20,20,20,20,{"$f":"SUM(G5:K5)","v":100},"I"]
[2,"Петар Стојиљковић ","\"Свети Сава''","Ниш","Јасмина Кокот",6035,20,20,20,20,20,100,"I"]
[3,"Павле Станковић ","\"Учитељ Таса''","Ниш","Весна Гроздановић",6056,20,20,20,20,20,100,"I"]
[4,"Војислав Андрић","\"С. Милетић\"","Београд","Слађана Цветинчанин",6067,20,20,20,20,20,100,"I"]
[5," Милош Савић"," \"Николај Велимировић\"","Шабац","Јово Михајловић",6206,20,20,20,20,20,100,"I"]
[6,"Огњен Јанковић ","\"Б. Радичевић'' ","Голубац","Иван Стојановић",6209,20,20,20,20,20,100,"I"]
[7,"Александар Госпавић","\"В.Караџић\"","Чачак","Олга Дукић",6120,20,20,20,20,18,98,"I"]
[8,"Наталија Здравковић","\"Стефан Немања''","Ниш","Биљана Стојадиновић",6022,20,20,20,17,20,97,"I"]
[9,"Димитрије Мићовић","\"Уједињене нације\"","Београд","Јована Мишић",6149,19,20,20,20,18,97,"I"]
[10,"Владимир Бранковић","\"Скадарлија\"","Београд","Драгана Пиваш",6013,20,20,20,15,20,95,"I"]
[11,"Алекса Јоцковић","\"Радоје Домановић\"","Београд","Ранка Рајковић",6038,20,20,20,15,20,95,"I"]
[12,"Марко Митић","\"Лаза Костић\"","Београд","Снежана Дујаковић",6074,20,20,20,15,20,95,"I"]
[13,"Урош Костадиновић","\"Вожд Карађорђе''","Ниш","Биљана Богдановић",6152,20,20,20,15,20,95,"I"]
[14,"Љубица Ђорђевић Теодоровић","\"Јелена Ћетковић\"","Београд","Весна Тодоровић Ристић",6039,20,19,15,20,20,94,"I"]
[15,"Владимир Алексић"," \"Бранко Ћопић\"","Београд","Југослав Секулић",6115,18,20,15,20,20,93,"I"]
[16,"Огњен Живановић"," \"Јеврем Обреновић\"      ","Шабац","Биљана Гајић",6160,20,20,18,15,20,93,"I"]
[17,"Марко Старчевић","\"Вук Караџић\"","Београд","Биљана Шомођа",6210,20,20,13,20,20,93,"I"]
[18,"Јанко Поповић","\"М. Пупин\"","Београд","Мирјана Бањац",6132,20,20,12,20,20,92,"II"]
[19,"Наталија Пантић","\"Стеван Немања\"","Стењевац","Тања Станојевић",6173,20,20,17,15,20,92,"II"]
[20,"Марија Михајловић","\"Скадарлија\"","Београд","Драгана Пиваш",6185,20,20,17,15,20,92,"II"]
[21,"Ђорђе Јовановић","\"Сестре Илић\"","Ваљево","Зоран Каљевић",6015,20,20,11,20,20,91,"II"]
[22,"Армин Добо"," \"Јован Микић\"","Суботица","Геза Ковач",6016,20,20,11,20,20,91,"II"]
[23,"Алекса Јојић ","\"Милан Ђ. Милићевић\"","Београд","Слађана Николић ",6154,20,20,11,20,20,91,"II"]
[24,"Марко Трајковић","\"Радоје Домановић\"","Врање","Слађан Андрејевић",6177,20,20,16,15,20,91,"II"]
[25,"Александар Алексић","\"Синиша Јанић\"","Власотинце","Драган Голубовић",6192,20,20,11,20,20,91,"II"]
[26,"Соња Бојанић","\"Васа Стајић\"","Нови Сад","Татјана Мићић",6009,20,20,20,10,20,90,"II"]
[27,"Матија Ивковић","\"Миле Дубљевић\"","Лајковац","Гроздана Ковачевић",6046,20,20,20,10,20,90,"II"]
[28,"Никола Мандић","\"Андра Савчић\"","Ваљево","Милка Нинковић",6096,20,20,11,20,19,90,"II"]
[29,"Вишња Новаковић"," \"Јеврем Обреновић\"      ","Шабац","Биљана Гајић",6172,20,20,20,10,20,90,"II"]
[30,"Новак Деспотовић","\"Вук Караџић\"","Кикинда","Биљана Груловић",6189,20,20,15,15,20,90,"II"]
[31,"Михајло Живановић","\"Јован Стерија Поповић\"","Београд","Радојка Чупић",6163,20,20,11,20,18,89,"II"]
[32,"Софија Павлекић","\"Радоје Домановић\"","Београд","Ранка Рајковић",6055,20,20,7,20,20,87,"II"]
[33,"Вук Ранђеловић","\"Доситеј Обрадовић\"","Ћићевац","Милош Митровић",6065,20,20,11,20,15,86,"II"]
[34,"Лена Јовановић","\"21. октобар\"","Крагујевац","Љиљана Симић-Равлић",6098,18,20,20,8,20,86,"II"]
[35,"Вук Шећеровић","\"Ћирило и Методије\"","Београд","Селма Поповић",6142,20,20,11,15,20,86,"II"]
[36,"Марко Моићевић","\"Јован Поповић\"","Нови Сад","Драгослава Петљански",6010,20,20,9,15,20,84,"II"]
[37,"Видак Глигоријевић"," \"Краљ Александар I\"","Пожаревац","Снежана Стојановић",6032,20,20,20,20,4,84,"II"]
[38,"Исидора Комленић","\"Јелена Ћетковић\"","Београд","Весна Тодоровић Ристић",6037,20,20,20,20,4,84,"II"]
[39,"Нина Андрејевић","\"Бранко Радичевић\"","Београд","Слађан Игњатовић",6178,20,20,20,4,20,84,"II"]
[40,"Петар Богдановић ","\"Вожд Карађорђе''","Ниш","Биљана Богдановић",6075,20,20,8,16,19,83,"II"]
[41," Милица Тешић","\"Јанко Веселиновић\"","Шабац","Срећко Илић",6202,20,20,20,18,4,82,"II"]
[42,"Вукашин Остојић","\"Милан Ђ. Милићевић\"","Београд","Слађана Николић ",6131,20,20,17,20,2,79,"II"]
[43,"Вукашин Радовановић"," \"Краљ Александар I\"","Пожаревац","Снежана Стојановић",6024,20,20,3,15,20,78,"II"]
[44,"Емилија Митровић","\"Ђорђе Натошевић\"","Нови Сад","Зоран Мићић",6033,20,20,17,20,1,78,"II"]
[45,"Павле Станковић","\"Андра Савчић\"","Ваљево","Драган Јанковић",6169,20,20,5,15,18,78,"II"]
[46,"Бојан Јовичић","\"Иван Гундулић\"","Београд","Драгица Момчиловић",6078,20,20,16,20,2,78,"II"]
[47,"Танасије Делић"," \"Душко Радовић\"","Београд","Маја Мутић",6030,20,20,11,20,6,77,"II"]
[48,"Матеја Глибетић","\"Прва основна\"","Ужице","Весна Димитријевић",6041,20,20,15,20,2,77,"II"]
[49,"Алексеј Петровић","\"Милош Црњански\"","Београд","Ката Вулетић",6085,18,19,15,5,20,77,"II"]
[50,"Урош Милијановић","\"Мирослав Антић\"","Београд","Наташа Мићевић",6126,20,20,20,15,2,77,"II"]
[51,"Софија Станишић","\"Милош Црњански\"","Београд","Ката Вулетић",6129,20,20,19,6,11,76,"II"]
[52,"Петар Крсмановић","\"С. Милетић\"","Београд","Милка Живковић",6165,19,20,20,15,2,76,"II"]
[53,"Лазар Јовић "," \"Николај Велимировић\"","Шабац","Јово Михајловић",6080,20,20,0,15,20,75,"II"]
[54,"Ања Вукмировић","\"Г. Принцип\"","Београд","Љиљана Милошевић",6141,20,20,16,15,4,75,"II"]
[55,"Ксенија Живанић","\"Мирко Јовановић\"","Крагујевац","Сандра Ристић",6073,20,20,10,4,20,74,"III"]
[56,"Сергеј Ристановић ","\"Драган Лукић\"","Београд","Снежана Кутлашић",6198,20,19,11,20,4,74,"III"]
[57,"Милица Вучковић","\"20. октобар\"","Београд","Маријета Ђаковић",6023,20,20,11,20,2,73,"III"]
[58,"Вељко Младеновић","\"Т. Рајић\"","Чачак","Момчило Ћирић",6051,20,20,11,20,2,73,"III"]
[59,"Милош Јелић","\"Вук Караџић\"","Зрењанин","Немања Мицић",6070,20,20,11,20,2,73,"III"]
[60,"Алекса Болић","\"Јован Поповић\"","Нови Сад","Драгослава Петљански",6087,20,2,11,20,20,73,"III"]
[61,"Теодора Станкић","\"М.Настасијевић\"","Г.Милановац","Ивана Толић",6113,20,20,11,20,2,73,"III"]
[62,"Војин Митровић ","\"Драган Лукић\"","Београд","Снежана Кутлашић",6211,20,20,11,18,4,73,"III"]
[63,"Софија Пејовић","\"Посавски Партизани\"","Београд","Маја Димковић",6156,20,20,20,8,4,72,"III"]
[64,"Александра Станојковић","\"Бранко Радичевић\"","Панчево","Љиљана Јанковић",6002,20,20,19,9,3.5,71.5,"III"]
[65,"Павле Макљеновић","\"В. Караџић\"","Чачак","Олга Дукић",6061,20,2,14,15,20,{"$f":"SUM(G69:K69)","v":71},"III"]
[66,"Андреј Варга","\"Свети Сава\"","Кикинда","Милан Данић",6091,20,20,11,20,0,71,"III"]
[67,"Павле Стојилковић ","\"Мирослав Антић''","Ниш","Драгана Томић",6122,20,20,12,2,17,71,"III"]
[68,"Павле Ивановић","\"Доситеј Обрадовић\"","Крушевац","Горица Ивановић",6183,20,20,19,6,6,71,"III"]
[69,"Филип Грујовић","\"Дринка Павловић\"","Београд","Ивана Томић",6197,20,0,11,20,20,71,"III"]
[70,"Маша Вирјановић","\"Вук Караџић\"","Кладово","Јелена Петковић",6111,20,20,11,10,9,70,"III"]
[71,"Милица Стевановић ","\"Душан Радовић''","Ниш","Братислав Милошевић",6204,20,20,6,4,20,70,"III"]
[72,"Павле Митровић","\"Ј.Ј.Змај\"","Свилајнац","Младенка Живковић",6168,20,8,11,10,20,69,"III"]
[73,"Илија Саковић","\"Јован Миодраговић\"","Београд","Мирјана Николић",6018,20,20,11,15,2,68,"III"]
[74,"Јован Лукић","\"М. и Д. Тодоровић\"","Крагујевац","Наташа Милинковић",6021,20,20,11,17,0,68,"III"]
[75,"Вукашин Дошеновић","\"Р. Н.- Свети Сава\"","Нова Пазова","Добрила Костић",6044,20,20,12,12,4,68,"III"]
[76,"Богдан Грубић"," \"14. октобар\"","Београд","Ивана Радевић",6054,19,18,11,16,4,68,"III"]
[77,"Леа Белић","\"Андра Савчић\"","Ваљево","Милка Нинковић",6112,20,20,11,10,7,68,"III"]
[78,"Јанко Јаковљевић","\"М.Кушић\"","Ивањица","Верица Спасојевић",6180,20,2,11,15,20,68,"III"]
[79,"Димитрије Марић","\"Ђорђе Крстић\"","Београд","Маријана Јовић Лучић",6050,20,20,17,10,0,67,"III"]
[80,"Миа Вучетић","\"Ћирило и Методије\"","Београд","Селма Поповић",6071,20,2,11,20,14,67,"III"]
[81,"Милош Маринковић","\"Радоје Домановић\"","Крагујевац","Јасмина Јовичић",6014,20,2,7,17,20,66,"III"]
[82,"  Урош Митровић"," \"Лаза К. Лазаревић\"","Шабац","Биљана Томић ",6116,20,20,0,9,17,66,"III"]
[83,"Алекса Николић","\"Витко и Света''","Гаџин Хан","Сузана Голубовић",6117,20,0,11,15,20,66,"III"]
[84,"Филип Голубовић ","\"Ђура Јакшић''","Јелашница (Ниш)","Светлана Ђикић",6181,18,20,11,15,2,66,"III"]
[85,"Дуња Илић","\"Д. Максимовић\"","Зајечар","Младен Шљивовић",6042,20,20,16,6,3,65,"III"]
[86,"Марко Михајловић","\"Јован Поповић\"","Нови Сад","Драгослава Петљански",6159,20,20,11,10,4,65,"III"]
[87,"Милан Гашић","\"Жарко Зрењанин\"","Кикинда","Жељко Радивојша",6175,20,20,11,8,4,63,"III"]
[88,"Василије Рончевић","\"Светолик Ранковић\"","Аранђеловац","Јасна Бараћ",6161,18,2,10.8,15,17,62.8,"III"]
[89,"Михајло Турина","\"Филип Кљајић Фића\"","Београд","Јован Лазић",6020,20,20,6,15,0,61,"III"]
[90,"Андреј Недељковић","\"Душан Радовић''","Ниш","Братислав Милошевић",6095,20,2,13,6,20,61,"III"]
[91,"Софија Станимировић ","\"Ћеле кула''","Ниш","Миодраг Петровић",6109,20,20,11,8,2,61,"III"]
[92,"Матеја Џунић","\"Хајдук Вељко\"","Зајечар","Наташа Јовановић Ристић",6147,20,0,11,10,20,61,"III"]
[93,"Софија Чебешек","\"Младост\"","Београд","Невенка Лелас Тодоров",6068,20,20,12,6,2,60,"III"]
[94,"Ђорђе Пауновић ","\"Карађорђе\"","Београд","Снежана Дујаковић ",6079,20,20,10,4,6,60,"III"]
[95,"Никола Маринковић","\"Влада Аксентијевић\"","Београд","Јелена Вучетић",6110,20,20,8,8,4,60,"III"]
[96,"Борис Маринковић","\"ХРШ\"","С.Паланка","Слободанка Николић",6119,20,20,11,9,0,60,"III"]
[97,"Дарија Васиљевић","\"IV краљевачки батаљон\"","Краљево","Марија Томић Гољић",6171,20,20,9,7,4,60,"III"]
[98,"Немања Антић","\"Душан Радовић''","Ниш","Братислав Милошевић",6007,20,20,11,4,4,59,"III"]
[99,"Марија Станичић","\"Славко Поповић\"","Даросава","Драгана Михаиловић",6144,20,20,16,0,2,58,"III"]
[100,"Павле Савић","\"Мирослав Антић''","Ниш","Драгана Томић",6094,20,20,11,4.5,2,57.5,"III"]
[101,"Тамара Маринковић","\"Стефан Немања''","Ниш","Биљана Стојадиновић",6052,20,20,11,4,2,57,"III"]
[102,"Никола Благојевић","\"Јован Миодраговић\"","Београд","Анита Тасић",6058,20,20,9,4,4,57,"III"]
[103,"Андреј Петровић","\"Дринка Павловић\"","Београд","Ивана Томић",6077,20,15,11,10,1,57,"III"]
[104,"Јована Иванковић","\"Стеван Синђелић\"","Београд","Стефан Поповић",6084,15,20,10,4,8,57,"III"]
[105,"Марко Алексић","\"Десанка Максимовић''","Чокот (Ниш)","Слађана Миланов",6150,20,19,11,5,2,57,"III"]
[106,"Милица Милошевић","\"Драгомир Марковић\"","Крушевац","Ненад Симић",6158,20,14,11,8,4,57,"III"]
[107,"Нађа Милетић ","\"Нада Поповић\"","Крушевац","Биљана Даничић",6184,20,5,15,11,6,57,"III"]
[108,"Тамара Димковић","\"Мирослав Антић\"","Београд","Наташа Мићевић",6092,20,18,11,4.5,3,56.5,"III"]
[109,"Христина Манчић","\"Вук Караџић\"","Пирот","Мирослав Ђорђевић",6045,20,2,11,20,3,56,"Похвала"]
[110,"Ања Кари"," \"Никола Тесла\"","Београд","Босиљка Живановић",6157,20,19,11,4,2,56,"Похвала"]
[111,"Лука Вујковић"," \"Јеврем Обреновић\"","Шабац","Биљана Гајић",6186,20,20,5,9,2,56,"Похвала"]
[112,"Андрија Мишић","\"Др Јован Цвијић\"","Смедерево","Зоран Чукић",6194,18,0,11,7,20,56,"Похвала"]
[113,"Јована Медић"," \"Јован Микић\"","Суботица","Даниел Баровић",6011,20,0,11,4,20,55,"Похвала"]
[114,"Миа Гмитровић","\"Павле Савић\"","Београд","Драгослава Јекић",6043,20,0,11,20,4,55,"Похвала"]
[115,"Михајло Јанићијевић","\"Јајинци\"","Београд","Радован Ковачевић ",6048,20,0,11,20,4,55,"Похвала"]
[116,"Јаков Симовић ","\"М. Павловић\"","Чачак","Зорица Миловановић",6127,20,20,2,9,4,55,"Похвала"]
[117,"Деспот Вујовић","\"М. Павловић\"","Чачак","Зорица Миловановић",6187,20,0,15,20,0,55,"Похвала"]
[118,"Војин Симоновић","\"М. Пупин\"","Београд","Мирјана Бањац",6201,20,1,11,6,17,55,"Похвала"]
[119,"Петар Николић","\"М. Павловић\"","Чачак","Зорица Миловановић",6106,20,2,20,10,2,54,"Похвала"]
[120,"Реља Вујичић"," “Нада Поповић”","Крушевац","Биљана Даничић",6136,20,7,11,5,11,54,"Похвала"]
[121,"Крсман Терзић","\"Димитрије Туцовић\"","Краљево","Јована Милијановић",6137,20,2,11,19,2,54,"Похвала"]
[122,"Урош Младеновић","\"Јован Јовановић Змај\"","Крушевац","Данијела Кршанин Васић",6025,20,6,12,13,2,53,"Похвала"]
[123,"Теодора Мишић","\"Вук Караџић\"","Књажевац","Јелена Петровић",6005,20,0,20,6,6,52,"Похвала"]
[124,"Лана Брауновић","\"Соња Маринковић\"","Нови Сад","Естер Варга",6066,20,2,20,5,5,52,"Похвала"]
[125,"Јелена Ковачевић","\"С.Сава\"","Г.Милановац","Зоран Недељковић",6143,20,0,5,7,20,52,"Похвала"]
[126,"Милена Милановић","\"Мајка Југовића\"","Београд","Марија Паројчић",6083,20,2,17,7,4,50,"Похвала"]
[127,"Софија Ђорђевић","\"Учитељ Таса''","Ниш","Гордана Станојевић",6029,20,19,1,5,4,49,"Похвала"]
[128,"Алекса Јоцовић","\"В.Караџић\"","Чачак","Олга Дукић",6191,20,0,14.8,10,4,48.8,"Похвала"]
[129,"Теодора Вучковић","\"Вук Караџић\"","Крушевац","Мирка Максимовић",6026,20,0,20,6,2,{"$f":"SUM(G133:K133)","v":48},"Похвала"]
[130,"Матеја Величковић ","\"IV краљевачки батаљон\"","Краљево","Марија Томић Гољић",6053,20,0,20,6,2,48,"Похвала"]
[131,"Михаило Мијајловић","\"Јован Јовановић Змај\"","Сремска Митровица","Бранислава Блајваз",6100,20,0,20,6,2,48,"Похвала"]
[132,"Соња Пивалица","\"20. октобар\"","Београд","Маријета Ђаковић",6140,20,2,11,15,0,48,"Похвала"]
[133," Сташа Радосављевић","\"Стојан Новаковић\"  ","Шабац","Бранка Ковић",6019,20,0,5,20,2,47,"Похвала"]
[134,"Лазар Јанићијевић","\"Ратко Вукићевић''","Ниш","Биљана Николић",6164,20,2,10,15,0,47,"Похвала"]
[135,"Михаило Тошовић","\"С. Лазаревић\"","Прилике","Мирјана Оцокољић",6170,20,2,15,10,0,47,"Похвала"]
[136,"Марко Стојков","\"Доситеј Обрадовић\"","Зрењанин","Методи Николов",6060,18,0,18,5,4,45,"Похвала"]
[137,"Данило Милошевић","\"М. Павловић\"","Чачак","Зорица Миловановић",6128,20,2,11,10,2,45,"Похвала"]
[138,"Миа Станојевић","\"Мирослав Антић\"","Београд","Наташа Мићевић",6130,5,18,2,20,0,45,"Похвала"]
[139,"Григорије Остојић","\"Младост\"","Београд","Невенка Лелас Тодоров",6190,20,2,15,6,2,45,"Похвала"]
[140,"Тамара Милосављевић"," \"Аца Алексић\"","Александровац","Манда Кнежевић",6069,20,2,13,5,4,44]
[141,"Јанко Јефтенић","\"М.Васић\"","Београд","Душица Ивановић",6090,20,2,11,7,4,44]
[142,"Радован Браловић","\"М. Павловић\"","Чачак","Катарина Драгутиновић",6123,20,0,12,8,4,44]
[143,"Нина Богдановић","\"Радоје Домановић\"","Београд","Ранка Рајковић",6139,20,2,17,1,4,44]
[144,"Тијана Филиповић","\"Д. Мишовић\"","Чачак","Милорад Панић",6179,20,0,16,4,4,44]
[145,"Страхиња Стојановић","\"8.октобар\"","Власотинце","Јасмина Тотошковић",6145,20,2,0,20,1,43]
[146,"Урош Стевановић ","'Чегар''","Ниш","Дарко Симић",6148,20,2,11,6,4,43]
[147,"Неда Живановић","\"Иво Андрић''","Ниш","Снежана Цвејић",6153,20,2,11,6,4,43]
[148,"Федор Вуксановић "," \"Филип Филиповић\" ","Београд","Нада Јојић ",6001,20,0,12,7,2,41]
[149,"Давид Матић","\"Вук Караџић\"","Београд","Драган Јовановић",6076,20,0,13,6,2,41]
[150,"Милица Спасић","\"Владислав Рибникар\"","Београд","Ивана Вукасовић",6108,20,0,11,6,4,41]
[151,"Лука Тодосијевић","\"Јелена Ћетковић\"","Београд","Весна Тодоровић Ристић",6162,20,0,13,6,2,41]
[152,"Срђан Вујичић","\"Михајло Пупин\"","Ветерник","Јасмина Мркић",6182,20,2,11,6,2,41]
[153,"Милан Рољевић","\"Ф. Филиповић\"","Чачак","Снежана Ђуђевић",6196,20,2,11,4,4,41]
[154,"Елена Поповић","\"Лаза Костић\"","Београд","Снежана Дујаковић",6006,8,20,6,4,2,40]
[155,"Марко Илић","\"Р. Н.- Свети Сава\"","Нова Пазова","Добрила Костић",6118,20,2,16,0,2,40]
[156,"Никола Белић"," ''Бранко Радичевић''","Оџаци","Милена Митић",6049,20,0,15,4,0,39]
[157,"Марија Антонијевић","\"Јован Поповић\"","Крагујевац","Вера Јовановић",6081,20,0,10,5,4,39]
[158,"Анђела Јоцовић","\"Светозар Марковић\"","Београд","Жељка Клус",6082,20,2,11,2,4,39]
[159,"Искра Стојановић","\"Мајка Југовића\"","Београд","Марија Паројчић",6093,20,0,11,6,2,39]
[160,"Никола Савић ","\"Мирослав Антић\"","Ниш","Драгана Томић",6101,19,0,12,6,2,39]
[161,"Стефан Славић","\"Прва основна школа\"","Ваљево","Јелена Стојановић",6102,20,0,11,6,2,39]
[162,"Миона Драгутиновић","\"Свети Сава\"","Крагујевац","Соња  Савовић",6062,20,0,12,4,2,38]
[163,"Јелена Ристић","\"Бубањски хероји''","Ниш","Југослав Ђорђевић",6086,20,0,11,5,2,38]
[164,"Андреј Ковачевић","\"Јелена Ћетковић\"","Београд","Весна Тодоровић Ристић",6133,20,2,11,3,2,38]
[165,"Исидора Влајковић","\"Светозар Марковић\"","Београд","Жељка Клус",6012,20,0,9,7,1,37]
[166,"Павле Качавенда","\"Кнегиња Милица\"","Београд","Милета Васовић",6107,20,0,12,3,2,37]
[167,"Петар Ускоковић ","\"Милован Глишић\"","Ваљево","Невена Смолчић",6195,18,0,7,10,2,37]
[168,"Сара Станојевић"," \"Душан Радовић\"","Бор","Минка Милићевић",6199,20,2,11,1,2,36]
[169,"Лазар Миловановић ","\"9. октобар\"","Прокупље","Драгана О. Стаменковић",6027,20,0,11,2,2,35]
[170,"Ивана Остојић"," \"Мика Митровић\"","Богатић","Драгана Лукић",6031,20,2,8,5,0,35]
[171,"Филип Кремић","\"Бошко Палковљевић-Пинки\"","Сремска Митровица","Зоран Мандић",6034,20,0,13,0,2,35]
[172,"Вукашин Косијер","\"Јован Поповић\"","Крушевац","Горан Милићевић",6063,20,2,8,3,2,35]
[173,"Павле Шимпрага","\"Владислав Рибникар\"","Београд","Данијела Савић",6072,20,0,11,2,2,35]
[174,"Стефан Павловић ","\"Карађорђе\"","Београд","Жељка Филић ",6089,20,2,11,0,2,35]
[175,"Павле Милошевић","\"Бранко Радичевић\"","Крушевац","Маријана Стевановић",6105,20,0,11,2,2,35]
[176,"Исидора Миловановић","\"Светолик Ранковић\"","Аранђеловац","Јасна Бараћ",6121,20,2,11,0,2,35]
[177,"Николија Михајловић ","\"Бубањски хероји''","Ниш","Југослав Ђорђевић",6138,20,0,11,2,2,35]
[178,"Тадија Гајић","\"Милован Глишић\"","Ваљево","Невена Смолчић",6174,20,0,11,4,0,35]
[179,"Милош Јовић","\"Доситеј Обрадовић\"","Крушевац","Горица Ивановић",6200,8,14,11,0,2,35]
[180,"Јана Петровић","\"Андра Савчић\"","Ваљево","Милка Нинковић",6047,20,2,7,5,0,34]
[181,"Сташа Стојановић","\"Бранко Радичевић\"","Владичин Хан","Владица Спасић",6151,18,2,6,4,4,34]
[182,"Чедомир Јанковић","\"В.Караџић\"","Чачак","Олга Дукић",6205,20,0,8,4,2,34]
[183,"Матија Савић ","\"М. Павловић\"","Чачак","Зорица Миловановић",6004,20,0,5,6,2,33]
[184,"Наталија Петковић","\"Ф.Филиповић\"","Чачак","Снежана Ђуђевић",6028,20,0,3,6,4,33]
[185,"Немања Тепавац","\"Иво Лола Рибар\"","Сомбор","Драгољуб Ђурић",6167,19,0,2,10,2,33]
[186,"Никола Коцић ","\"9. октобар\"","Прокупље","Драгана О. Стаменковић",6088,20,0,4,6,2,32]
[187,"Филип Василијевић ","\"С. Сава\"","Г.Милановац","Зоран Недељковић",6203,19,0,6,5,2,32]
[188,"Павле Лекић","\"Милан Илић Чича\"","Аранђеловац","Данијела Митровић",6036,20,0,2,6,2,30]
[189,"Софија Николић","\"Д. Давидовић\"","Смедерево","Ружица Томић",6097,20,0,4,6,0,30]
[190,"Коста Милошевић","\"М. Павловић\"","Чачак","Зорица Миловановић",6017,20,0,1,6,2,29]
[191,"Богдан Црвеница","\"Ј. Миловановић''","Београд","Гордана Бојат",6040,20,0,2,2,5,29]
[192,"Татјана Којовић","\"Деспот Стефан Лазаревић\"","Београд","Слађана Шкода",6193,20,2,1,3,2,28]
[193,"Вук Благојевић","\"Радоје Домановић\"","Београд","Ранка Рајковић",6104,20,0,3,0,4,{"$f":"SUM(G197:K197)","v":27}]
[194,"Миљана Филиповић","\"Бубањски хероји''","Ниш","Југослав Ђорђевић",6114,20,0,2,0,4,26]
[195,"Ана Љушић","\"Младост\"","Београд","Невенка Лелас Тодоров",6166,7,0,2,15,2,26]
[196,"Вељко Павловић"," \"Јован Цвијић\"","Костолац","Петар Марковић",6188,20,0,2,2,2,26]
[197,"Мила Димитријевић","\"Павле Савић\"","Београд","Драгослава Јекић",6134,16,0,2,5,2,25]
[198,"Елена Тодоровић","\"Мирослав Антић\"","Београд","Наташа Мићевић",6176,20,0,2,2,0,24]
[199,"Милица Бошковић","\"М. Павловић\"","Чачак","Катарина Драгутиновић",6103,20,0,2,0,0,22]
[200,"Анђела Васовић","\"М. Павловић\"","Чачак","Зорица Миловановић",6207,13,2,2,0,2,19]
[201,"Урош Николић ","\"М. Павловић\"","Чачак","Зорица Миловановић",6059,2,0,7,2,2,13]
[202,"Теодора Миладиновић","\"Д. Прица\"","Д. Брњица","Александар Милановић",6008,8,0,1,3,0,12]
[203,"Мартин Куцуловић","\"8. октобар\"","Власотинце","Јасмина Тотошковић",6064,7,0,0,2,0,9]
[204,"Милица Радивојевић"," \"Ј.Ј.Змај\"","Сурдулица","Миодраг Стојановић",6125,2,0,1,2,2,7]
[205,"Андрија Васић","\"Десанка Максимовић\"","Кос. Каменица","Бисерка Симић",6057,2,0,1,0,0,3]

{"sheet":"разред 7п","index":1,"n_rows":36,"n_cols":15,"rows_kept":36}
[]
[null,"Резултати 7. разред - посебна одељења"]
[]
["Р.Бр.","Име и презиме","Број учионице","Пос.Од.","Основна школа","Место","Име и презиме\nнаставника","Шифра","Зад.1","Зад.2","Зад.3","Зад.4","Зад.5","Ук."]
[1,"Филип Марковић",6,"ДА","\"Математичка гимназија\"","Београд","Вишња Јовановић",7128,20,20,11,20,18.1,{"$f":"SUM(I5:M5)","v":89.1},"I"]
[2,"Јана Шишовић",9,"ДА","\"Математичка гимназија\"","Београд","Вишња Јовановић",7059,20,20,9,20,18,87,"I"]
[3,"Лука Анђелковић",15,"ДА","Гимназија ''Светозар Марковић''","Ниш","Славољуб Митић",7074,20,20,7,20,17.5,84.5,"I"]
[4,"Михајло Цвејић",18,"ДА","\"Ј.Ј. Змај\"","Нови Сад","Снежана Булајић",7153,20,20,4,20,20,84,"II"]
[5,"Михаило Лекић",22,"ДА","\"Ваљевска гимназија\"","Ваљево","Милка Нинковић",7013,20,20,2,20,20,82,"II"]
[6,"Тамара Радмиловић",26,"ДА","\"Ј.Ј. Змај\"","Нови Сад","Снежана Булајић",7169,20,20,2,20,20,82,"II"]
[7,"Стеван Радивојевић",24,"ДА","\"Математичка гимназија\"","Београд","Вишња Јовановић",7072,20,20,2,20,20,82,"II"]
[8,"Јован Милићев",28,"ДА","\"Математичка гимназија\"","Београд","Вишња Јовановић",7053,20,20,2,20,18.1,80.1,"II"]
[9,"Иван Ристовић",35,"ДА","\"Математичка гимназија\"","Београд","Вишња Јовановић",7130,20,20,0,20,20,80,"II"]
[10,"Ива Недељков",39,"ДА","\"Ј.Ј. Змај\"","Нови Сад","Снежана Булајић",7033,20,20,2,20,18,80,"II"]
[11,"Лазар Лазаревић",41,"ДА","\"Ваљевска гимназија\"","Ваљево","Милка Нинковић",7001,20,20,7,20,8,75,"III"]
[12,"Реља Кукић",43,"ДА","\"Математичка гимназија\"","Београд","Вишња Јовановић",7065,20,20,2,13,19,74,"III"]
[13,"Никола Самарџић",48,"ДА","\"Математичка гимназија\"","Београд","Вишња Јовановић",7091,20,20,0,20,13,73,"III"]
[14,"Тијана Тривуновић",52,"ДА","\"Ј.Ј. Змај\"","Нови Сад","Снежана Булајић",7029,20,20,7,5,20,72,"III"]
[15,"Андреј Момчиловић",53,"ДА","\"Математичка гимназија\"","Београд","Вишња Јовановић",7096,19,20,0,13,20,72,"III"]
[16,"Јана Митровић",59,"ДА","\"Ваљевска гимназија\"","Ваљево","Милка Нинковић",7136,20,20,2,13,16,71,"III"]
[17,"Софија Ћупић",61,"ДА","Гимназија ''Светозар Марковић''","Ниш","Славољуб Митић",7122,20,20,9,13,8,70,"Похвала"]
[18,"Мила Грубовић",63,"ДА","\"Математичка гимназија\"","Београд","Вишња Јовановић",7067,16,20,0,13,20,69,"Похвала"]
[19,"Лука Ђурић",65,"ДА","\"Математичка гимназија\"","Београд","Вишња Јовановић",7027,20,13.6,2,13,20,68.6,"Похвала"]
[20,"Матија Кондић",66,"ДА","\"Ј.Ј. Змај\"","Нови Сад","Снежана Булајић",7026,20,20,2,14,12,68,"Похвала"]
[24,"Тадеј Ристић",99,"ДА","\"Математичка гимназија\"","Београд","Вишња Јовановић",7087,16,10,9,20,13,68,"Похвала"]
[21,"Јанко Башчаревић",70,"ДА","\"Прва крагујевачка гимназија\"","Крагујевац","Катарина Ђорђевић",7079,20,20,4,13,9,66,"Похвала"]
[22,"Ирина Тамбурић",86,"ДА","\"Математичка гимназија\"","Београд","Вишња Јовановић",7014,10,20,6,13,13,62,"Похвала"]
[23,"Ана Васић",93,"ДА","\"Ј.Ј. Змај\"","Нови Сад","Снежана Булајић",7164,8,20,0,20,13,61]
[25,"Лана Кузминац",111,"ДА","\"Ј.Ј. Змај\"","Нови Сад","Снежана Булајић",7118,2,20,7,6,20,55]
[26,"Алиса Стојановић",117,"ДА","\"Прва крагујевачка гимназија\"","Крагујевац","Катарина Ђорђевић",7098,5,20,2,13,13,53]
[27,"Аница Петровић",122,"ДА","\"Ваљевска гимназија\"","Ваљево","Милка Нинковић",7111,6,20,2,13,9,50]
[28,"Нина Станић",124,"ДА","\"Ваљевска гимназија\"","Ваљево","Милка Нинковић",7166,20,5,2,9,13,49]
[29,"Маја Јованић",132,"ДА","\"Математичка гимназија\"","Београд","Вишња Јовановић",7125,10,19,4,0,13,46]
[30,"Драган Ђокић",141,"ДА","\"Ваљевска гимназија\"","Ваљево","Милка Нинковић",7076,5,20,2,11,5,43]
[31,"Теодора Томановић",155,"ДА","\"Ј.Ј. Змај\"","Нови Сад","Снежана Булајић",7043,14,3,0,12.5,8,37.5]
[32,"Ирина Очишник",174,"ДА","\"Прва крагујевачка гимназија\"","Крагујевац","Катарина Ђорђевић",7073,1,3,5,3,8,20]

{"sheet":"разред 7","index":2,"n_rows":147,"n_cols":14,"rows_kept":147}
[]
[null,"Резултати 7. разред"]
[]
["Р.Бр.","Име и презиме","Пос.Од.","Основна школа","Место","Име и презиме\nнаставника","Шифра","Зад.1","Зад.2","Зад.3","Зад.4","Зад.5","Ук."]
[1," Вукашин Бабић","НЕ"," \"Николај Велимировић\"","Шабац","Јово Михајловић",7154,20,20,20,20,20,{"$f":"SUM(H5:L5)","v":100},1]
[2,"Маја Митић","НЕ","\"Радоје Домановић\"","Београд","Ранка Рајковић",7092,20,20,18,20,20,98,1]
[3,"Тадија Јелесијевић","НЕ"," \"Јован Поповић\"","Крушевац","Маријана Стевановић",7009,20,20,16,20,20,96,1]
[4,"Угљеша Кузманов","НЕ","\"Стевица Јовановић\"","Панчево","Зоран Савић",7062,20,20,16,20,19,95,1]
[5,"Мила Миленић","НЕ","\"Милош Црњански\"","Београд","Ката Вулетић",7022,20,20,12,20,18.1,90.1,1]
[6,"Ђорђе Томић","НЕ"," \"Ј.Ј. Змај\"","Брус","Верољуб Милутиновић",7039,20,20,9,20,20,89,1]
[7,"Гвозден Лапчевић","НЕ","\"Доситеј Обрадовић\"","Крушевац","Надежда Ђолић",7123,20,10,18,20,20,88,1]
[8,"Софија Ненадовић","НЕ","\"Андра Савчић\"","Ваљево","Милка Нинковић",7162,18,20,16,13,20,87,1]
[9,"Јанко Стефановић","НЕ","\"Душан Радовић\"","Пирот","Горан Игњатовић",7105,20,20,7,20,20,87,1]
[10,"Јован Јованов","НЕ","\"Михајло Пупин\"","Идвор","Борислав Жарков",7163,20,20,18,20,8,86,1]
[11,"Лара Јоксимовић","НЕ"," \"Данило Киш\"","Београд","Марика Чочовска -Миловановић",7006,20,20,7,20,18,85,1]
[12,"Данило Грбић","НЕ","\"Лаза Костић\"","Београд","Ђорђе Ћипаризовић",7024,20,20,5,20,20,85,1]
[13,"Стефан Николов","НЕ","\"Доситеј Обрадовић\"","Зрењанин","Методи Николов",7142,20,20,4,20,20,84,1]
[14,"Зрна Ћирић","НЕ","\"С. Маринковић\"","Београд","Мирјана Кисјелица",7149,20,20,4,20,20,84,1]
[15,"Марко Радојевић","НЕ","\"Лаза Костић\"","Београд","Ђорђе Ћипаризовић",7117,20,20,5,20,18.1,83.1,2]
[16,"Алета Ћаћић","НЕ"," \"Никола Тесла\"","Београд","Весна Манић",7115,16,20,7,20,20,83,2]
[17,"Андреј Лукић","НЕ","\"Ј.Ј.Змај\"","Ковин","Александар Крчуљ",7104,20,20,2,20,20,82,2]
[18,"Вељко Васић","НЕ","\"Ј.Ј.Змај\"","Ковин","Александар Крчуљ",7174,20,20,4,20,18,82,2]
[19,"Јован Николић","НЕ","\"Кадињача\"","Лозница","Селимир Лазић",7007,20,20,2,20,20,82,2]
[20,"Милош Крнета","НЕ","\"Мирослав Антић\"","Београд","Наташа Мићевић",7071,20,20,2,20,20,82,2]
[21,"Милош Атанацковић","НЕ"," \"Владислав Рибникар\"","Београд","Данијела Савић",7060,20,20,9,20,11,80,2]
[22,"Јован Каличанин","НЕ"," \"Николај Велимировић\"","Шабац","Јово  Михајловић",7061,20,20,7,13,20,80,2]
[23,"Александар Манојловић","НЕ"," \"Франце Прешерн\"","Београд","Јелисавета Хрњаковић",7095,20,20,9,20,11,80,2]
[24,"Павле Бугарски","НЕ","\"Ј.Ј.Змај\"","Београд","Драган Мандушић",7034,20,20,2,20,18,80,2]
[25,"Милица Јовичић","НЕ","\"Кадињача\"","Лозница","Селимир Лазић",7018,20,20,2,20,18,80,2]
[26,"  Катарина Гавриловић","НЕ","\"Лаза К. Лазаревић\"","Шабац","Милорад Илић",7171,20,20,7,20,13,80,2]
[27,"Јаков Вељовић","НЕ","\"Сутјеска\"","Рашка","Снежана Милутиновић",7068,20,20,0,20,20,80,2]
[28," Милош Раковић","НЕ"," \"Николај Велимировић\"","Шабац","Јово Михајловић",7056,20,20,6,20,13,79,2]
[29,"Стефанија Живановић","НЕ","\"Дринка Павловић\"","Београд","Ивана Томић",7050,20,20,2,17,20,79,2]
[30,"Софија Дулетић","НЕ","\"Лаза Костић\"","Београд","Ђорђе Ћипаризовић",7129,20,20,0,18,20,78,2]
[31,"Богдан Аћић","НЕ","\"Мирослав Антић\"","Београд","Наташа Мићевић",7152,16,20,0,20,19,75,2]
[32,"Александар Адакалић","НЕ"," \"Јеврем Обреновић\"        ","Шабац","Биљана Гајић",7139,20,20,4,10,20,74,2]
[33,"Јана Игњатовић","НЕ"," \"Никола Тесла\"","Београд","Весна Манић",7084,16,20,5,13,20,{"$f":"SUM(H37:L37)","v":74},2]
[34,"Лука Савић","НЕ","\"Славко Поповић\"","Даросава","Драгана Михаиловић",7116,14.4,20,0,19,20,73.4,2]
[35,"Александар Губица","НЕ","\"Доситеј Обрадовић\"","Сомбор","Стојан Вулевић",7137,20,20,0,20,13,73,2]
[36,"Петар Миловановић","НЕ","\"Рашка\"","Рашка","Ирена Мутавџић",7036,20,20,0,13,20,73,2]
[37,"Павле Јовановић","НЕ","\"Светозар Марковић\"","Краљево","Наташа Китановић",7106,20,20,0,20,13,73,2]
[38,"Јован Милинковић","НЕ","\"Лаза Костић\"","Београд","Ђорђе Ћипаризовић",7100,20,10.4,4,20,18,72.4,2]
[39,"Огњен Милојевић","НЕ","\"Борислав Пекић\"","Београд","Снежана Кутлашић",7124,20,20,2,12,18,72,3]
[40,"Страхиња Пејић","НЕ","\"Доситеј Обрадовић\"","Крушевац","Горица Ивановић",7107,18,20,3,13,18,72,3]
[41,"Дарко Симић","НЕ","\"Жарко Зрењанин\"","Кикинда","Жељко Радивојша",7031,20,13.6,0,18,20,71.6,3]
[42,"  Александра Пајић","НЕ"," \"Лаза К. Лазаревић\"","Шабац","Биљана Томић",7094,18,20,2,20,11,71,3]
[43,"Милош Жижић","НЕ","\"Јован Миодраговић\"","Београд","Анита Тасић",7108,16,20,2,20,13,71,3]
[44,"Анђа Милојевић","НЕ","\"Ђуро Стругар\"","Београд","Зоран Дивац",7058,17.2,20,2,18.6,13,{"$f":"SUM(H48:L48)","v":70.80000000000001},3]
[45,"Драга Марјановић ","НЕ","\"Данило Киш\"","Београд","Марика Чочовска -Миловановић",7017,20,20,4,20,6,70,3]
[46,"Божо Комарица","НЕ","\"Надежда Петровић\"","Београд","Александра Стефановић",7025,20,20,2,13,14,69,3]
[47,"Теодора Миленковић","НЕ","\"Бранко Радичевић\"","Чента","Смиљана Вујчин",7021,16,20,5,13,14.6,68.6,3]
[48,"Страхиња Ћосић ","НЕ","\"Вук Караџић\"","Лозница","Владан Митровић",7078,20,19,0,20,9,68,3]
[49,"Наташа Ковачевић","НЕ","\"Мирослав Антић\"","Београд","Наташа Мићевић",7035,16,20,4,20,8,68,3]
[50,"Коста Милошевић","НЕ"," \"Владислав Рибникар\"","Београд","Данијела Савић",7102,20,20,0,20,6,66,3]
[51,"Сандра Трајковић","НЕ"," \"Никола Тесла\"","Београд","Босиљка Живановић",7028,6,20,7,13,20,66,3]
[52,"Лука Бајовић ","НЕ","\"М. Павловић\"","Чачак","Зорица Миловановић",7112,5,20,15,20,4,64,3]
[53," Викториа Ђорђевић","НЕ","\"Николај Велимировић\"","Шабац","Јово Михајловић",7165,12,20,4,20,8,64,3]
[54,"Љубодраг Радмиловић","НЕ","\"Стевица Јовановић\"","Панчево","Зоран Савић",7090,20,20,3,13,8,64,3]
[55,"Виктор Тошковић ","НЕ","\"Нада Поповић\"","Крушевац","Биљана Даничић ",7019,8,20,2,20,13.6,63.6,3]
[56,"Сара Остојић ","НЕ","\"Бора Станковић\"","Београд","Јован Анђелковић ",7080,20,20,6,13,4,63,3]
[57,"Вук Чађеновић","НЕ","\"Браћа Вилотијевић\"","Краљево","Снежана Радичевић",7172,20,11,5,7,20,63,3]
[58,"Љубомир Бајић","НЕ","\"Др Јован Цвијић\"","Зрењанин","Биљана Танкосић",7049,10,20,0,20,13,63,3]
[59,"Невена Радојичић","НЕ","\"Драган Лукић\"","Београд","Јелена Латас",7135,20,20,2,5,16,63,3]
[60,"Лазар Стаменковић","НЕ","\"Љупче Николић''","Алексинац","Александра Вуковић",7010,20,20,2,13,8,63,3]
[61," Вук Игњатовић","НЕ","\"Петар Враголић\"","Љубовија","Митра С. Грујић",7046,20,19,0,20,4,63,3]
[62,"Дуња Квашчев","НЕ","\"Ратко Митровић\"","Београд","Александра Стефановић",7002,18,15,2,20,8,63,3]
[63,"Страхиња Пауновић","НЕ","\"Ф. Филиповић\"","Чачак","Снежана Ђурђевић",7120,9,20,4,12,18,63,3]
[64,"Данило Ранђеловић","НЕ"," \"Вук Караџић\"","Пожаревац","Јелена Добричић",7008,20,4,0,20,18,62,3]
[65,"Ања Радосављевић","НЕ","\"Вељко Дугошевић\"","Београд","Зоран Јовичић",7085,12,20,4,20,6,{"$f":"SUM(H69:L69)","v":62},3]
[66,"Мирослав Девић","НЕ","\"Доситеј Обрадовић\"","Зрењанин","Методи Николов",7020,14,20,0,20,8,62,3]
[67,"Никола Миличковић","НЕ","\"Младост\"","Београд","Невенка Лелас Тодоров",7131,16,20,0,18,8,62,3]
[68,"Богдан Миленковић","НЕ","\"Вук Караџић\"","Врање","Сузана Ивановић",7173,20,20,0,13,8,61,3]
[69,"Милан Ранковић","НЕ","\"Др Јован Цвијић\"","Смедерево","Јасмина Чукић",7099,20,20,0,13,8,61,3]
[70,"Анастасија Сајић","НЕ","\"Милош Црњански\"","Београд","Ката Вулетић",7030,20,20,0,13,8,61,3]
[71,"Катарина Кубуровић","НЕ","\"Радоје Домановић\"","Београд","Ранка Рајковић",7160,20,20,12,9,0,61,3]
[72,"Теодора Сајић","НЕ","\"Милена Павловић Барили\"","Београд","Љиљана Пајовић Јовановић",7167,16,20,2,13,9,60,3]
[73,"Наташа Соломун","НЕ","\"С. Маринковић\"","Београд","Мирјана Кисјелица",7082,5,20,2,13,20,60,3]
[74,"Љиљана Коњевић","НЕ","\"Стефан Дечански\"","Београд","Наташа Костић",7176,12,20,0,20,8,60,3]
[75,"Павле Кулић ","НЕ","\"Десанка Максимовић\"","Зајечар","Младен Шљивовић",7168,3,20,5,11,20,59,"похвала"]
[76,"Михаило Јанчевић","НЕ","\"Раде Кончар\"","Београд","Сибела Минић",7011,20,19,0,20,0,59,"похвала"]
[77,"Милица Трнинић","НЕ"," \"Иво Андрић\"","Београд","Александра Поповић",7023,12,20,7,6,13,58,"похвала"]
[78,"Јелена Којић","НЕ"," \"Кизур Иштван\"","Суботица","Гордана Матош",7151,14,20,0,20,4,58,"похвала"]
[79," Јована Јањатовић","НЕ","\"Ната Јеличић\" ","Шабац","Биљана Баштовановић",7042,20,18,7,5,8,58,"похвала"]
[80,"Урош Штулић","НЕ","\"Стефан Дечански\"","Београд","Наташа Костић",7069,14,20,0,20,4,58,"похвала"]
[81,"Марко Параментић","НЕ","\"Милован Глишић\"","Ваљево","Невена Смолчић",7126,20,20,2,6,10,58,"похвала"]
[82,"Јаков Павловић","НЕ","\"Живан Маричић\"","Краљево","Јасмина Милојевић",7155,8,20,2,18,9,57,"похвала"]
[83,"Вук Степанов","НЕ","\"Ј.С. Поповић\"","Вршац","Наташа Петковић",7070,0,20,18,15,4,57,"похвала"]
[84,"Лазар Стојиљковић","НЕ","\"Марија Бурсаћ\"","Београд","Наталија Медић",7044,20,9,0,20,8,57,"похвала"]
[85,"Ђорђе Ваљаревић","НЕ","\"Свети Сава\"","Читлук","Наташа Јаснић",7041,20,20,0,13,4,57,"похвала"]
[86,"Алекса Васић","НЕ","\"Свети Сава\"","Пирот","Наташа Ристић",7054,14,20,2,13,8,57,"похвала"]
[87,"Никола Грујић","НЕ","\"Јован Стерија Поповић\"","Београд","Ивана Вукасовић",7175,3,20,0,20,13,56,"похвала"]
[88,"Мина Стаменић","НЕ"," \"Никола Тесла\"","Београд","Весна Манић",7037,10,20,0,20,4,54,"похвала"]
[89,"Илија Кујунџић","НЕ","\"Јелена Ћетковић\"","Београд","Весна Тодоровић Ристић",7121,20,13,0,17,4,54,"похвала"]
[90,"Емилија Дивац","НЕ","\"Мајка Југовића\"","Београд","Марија Паројчић",7005,5,20,0,20,9,54,"похвала"]
[91,"Данило Рајков","НЕ","\"Милоје Чиплић\"","Нови Бечеј","Рудолф Хорват",7148,16,5,5,20,8,54,"похвала"]
[92,"Марија Варинац","НЕ","\"Милош Црњански\"","Београд","Ката Вулетић",7110,6,20,0,20,8,54,"похвала"]
[93,"Андреја Поповић","НЕ","\"Иво Андрић''","Ниш","Сузана Стојановић",7145,6,13.2,4,20,8,51.2,"похвала"]
[94,"Милош Станковић","НЕ","\"Свети Сава\"","Београд","Ксенија Кезић Кањевац",7143,20,13.2,0,10,8,51.2,"похвала"]
[95,"Богдан Нешић","НЕ","\"Вељко Дугошевић\"","Београд","Зоран Јовичић",7109,10,20,9,8,4,51,"похвала"]
[96,"Јован Рудић Вранић","НЕ"," \"Иван Милутиновић\"","Суботица","Милена Кецман",7103,10,20,0,7,13,50,"похвала"]
[97,"Александар Оташевић","НЕ","\"Петар Петровић Његош\"","Београд","Светлана Кајтез",7161,3,20,2,12,13,{"$f":"SUM(H101:L101)","v":50},"похвала"]
[98,"Василије Пејчиновић","НЕ","\"Уједињене нације\"","Београд","Ана Марјановић",7178,20,20,0,5,4,49]
[99,"Милица Сумзер","НЕ","\"Ђура Јакшић\"","Каћ","Јелена Јовић",7047,6,20,5,9,8,48]
[100,"Илија Цвијовић","НЕ","\"Т. Рајић\"","Чачак","Момчило Ћирић",7159,20,4,4,20,0,48]
[101,"Јанко Вукобратовић","НЕ","\"Душан Јерковић\"","Инђија","Зоран Живковић",7097,3,20,0,20,4,47]
[102,"Дуња Суботић","НЕ","\"С. Маринковић\"","Београд","Мирјана Кисјелица",7146,3,5,0,20,18.1,46.1]
[103,"Иван Митровић","НЕ","\"Драган Лукић\"","Београд","Јелена Латас",7127,10,6,2,20,8,46]
[104,"Лука Савковић","НЕ","\"И. Гарашанин\"","Београд","Милева Атанасковић",7140,0,20,0,20,6,46]
[105,"Урош Суђић","НЕ","\"Свети Сава\"","Бачка Паланка","Славица Кременовић",7012,18,20,0,0,8,46]
[106,"Марија Јулија Митровић","НЕ","\"Светозар Марковић\" ","Београд","Жељка Клус",7083,6,20,5,7,8,46]
[107,"Лена Ећимовић","НЕ","\"Стевица Јовановић\"","Панчево","Зоран Савић",7093,10,3,2,19,11,45]
[108,"Дарија Чањи","НЕ","\"2. Октобар\"","Зрењанин","Методи Николов",7170,5,20,2,13,4,44]
[109,"Љубица Михаиловић","НЕ","\"Ј.Ј. Змај\"","Брус","Верољуб Милутиновић",7081,20,20,0,0,4,44]
[110,"Александар Џуџевић","НЕ","\"Светозар Марковић\"","Београд","Жељка Клус",7089,3,20,5,12,4,44]
[111,"Видан Цветић","НЕ","\"Стеван Дукић\"","Београд","Снежана Ивановић",7057,2,16,2,13,11,44]
[112,"Вера Новаковић","НЕ","\"Д. Максимовић\"","Прибој","Братислав Бојанић",7158,2,20,0,13,8,43]
[113,"Огњен Ракић","НЕ","\"Д.Обрадовић\"","Смедерево","Зорица Цвејић",7141,6,20,0,13,4,43]
[114,"Марко Јовановић","НЕ","\"Р. Митровић\"","Чачак","Алекдандар Миловановић",7052,6,20,0,13,4,43]
[115,"Јована Врањешевић","НЕ","\"Вељко Дугошевић\"","Рума","Сандра Новаковић",7064,3,20,2,13,4,42]
[116,"Ђурђа Симић","НЕ","\"Прва основна школа\"","Ваљево","Јелена Стојановић",7177,5,20,7,6,4,42]
[117,"Никола Максимовић","НЕ","\"Вожд Карађорђе''","Ниш","Биљана Богдановић",7075,3,16,9,13,0,41]
[118,"Гаврило Живковић","НЕ","\"Чегар\"","Ниш","Дарко Симић",7132,6,11,0,20,4,41]
[119,"Јулија Петровић","НЕ","\"Вук Караџић\"","Крушевац","Драган Фимић",7133,6,3,0,11,20,40]
[120,"Тијана Бељић","НЕ","\"Дуле Караклајић\"","Београд","Јасмина Стевановић",7063,0,20,5,13,2,40]
[121,"Вељко Рајковић","НЕ","\"Свети Сава\"","Београд","Ксенија Кезић Кањевац",7113,10,20,8,2,0,40]
[122,"Матија Лазић","НЕ","\"Серво Михаљ\"","Падеј","Драган Васић",7003,12,3,2,20,3,40]
[123,"Петар Јовановић","НЕ","\"Д. Максимовић\"","Прибој","Братислав Бојанић",7088,0,20,0,11,8,39]
[124,"Петар Здраковић","НЕ","\"Бранко Радичевић\"","Владичин Хан","Владица Спасић",7150,3,20,0,7,8,38]
[125,"Соња Стојановић","НЕ","\"Дринка Павловић\"","Београд","Ивана Томић",7016,14,8,8,3,4,37]
[126,"Урош Петровић","НЕ","\"Светозар Марковић\"","Београд","Жељка Клус",7015,6,20,0,3,8,37]
[127,"Валентина Брзић ","НЕ","\"Ђура Даничић\"","Београд","Јелена Ристановић",7147,3,20,2,0,11,36]
[128,"Алекса Недељковић","НЕ","\"Ратко Павловић-Ћићко\"","Ратково","Жарко Недељковић",7157,0,4,2,13,16,35]
[129,"Милан Крсмановић","НЕ","\"М. Кушић\"","Ивањица","Милка Поледица",7051,20,9,0,5,0,{"$f":"SUM(H133:L133)","v":34}]
[130,"Филип Поповић","НЕ","\"Петар Кочић\"","Инђија","Светозар Трескавица",7038,6,20,2,4,2,34]
[131,"Теодора Несторовић","НЕ","\"Д.Т.Ћирко\"","В.Жупа","Џенита Ламежевић Срна",7077,1,15,0,13,4,33]
[132,"Тамара Марсенић","НЕ","\"С. Маринковић\"","Београд","Мирјана Кисјелица",7032,1,20,0,2.5,9,32.5]
[133,"Балша Радуновић","НЕ","\"Иван Милутиновић\"","Београд","Горан Бојанић",7040,8,3,0,13.4,8,32.4]
[134,"Марко Секулић","НЕ","\"Милош Црњански\"","Нови Сад","Драгана Бранковић",7055,0,9,7,3,13,32]
[135,"Марко Лазић","НЕ"," \"Бранко Ћопић\"","Београд","Адриан Варга",7156,0,7,0,20,4,31]
[136,"Дивна Теслић","НЕ","\"С. Маринковић\"","Београд","Мирјана Кисјелица",7004,10,4,0,13,4,31]
[137,"Никола Марковић","НЕ","\"Анта Богићевић\""," Лозница","Владимир Ђукановић",7048,6,17,4,0,0,27]
[138,"Љубиша Ђикић","НЕ","\"Вук Караџић''","Сурдулица","Братислав Радовановић",7114,4,20,0,1,2,27]
[139,"Алекса Кангрга","НЕ","\"Мирослав Антић\"","Београд","Наташа Мићевић",7086,0,20,3,0,4,27]
[140,"Дана Рајковић","НЕ","\"Васа Пелагић\"","Лесковац","Биљана Геров",7138,0,10,0,10,6,26]
[141,"Огњен Антић","НЕ","\"Вук Караџић\"","Пирот","Мирослав Ђорђевић",7144,0,15,2,0,6,23]
[142,"Алекса Митровић","НЕ","\"Стари град\"","Ужице","Ангелина Јеротијевић Марковић",7066,2,3,2,5,8,20]
[143,"Јована Ђорђевић","НЕ","\"Пера Мачкатовац\"","Сурдулица","Ненад Станковић",7119,8,0,0,0,0,8]

{"sheet":"разред 8","index":3,"n_rows":118,"n_cols":15,"rows_kept":118}
[]
[null,"Резултати 8. разред - посебна одељења"]
[]
["Р. Бр.","Име и презиме","Пос.Од.","Основна школа","Место","Име и презиме\nнаставника","Шифра","Зад.1","Зад.2","Зад.3","Зад.4","Зад.5","Ук."]
[1,"Весна Томашевић","НЕ","\"Радоје Домановић\"","Београд","Ранка Рајковић",8005,19,13,20,20,19.1,{"$f":"H5+I5+J5+K5+L5","v":91.1},"I","СФО"]
[2,"Урош Полексић","НЕ","\"Иван Горан Ковачић\"","Београд","Наташа Табаковић",8096,20,13,20,20,17.25,{"$f":"H6+I6+J6+K6+L6","v":90.25},"I","СФО"]
[3,"Матија Станишић","НЕ","\"Доситеј Обрадовић\"","Зрењанин","Методи Николов",8058,13,9,20,20,19.3,81.3,"I","СФО"]
[4,"Павле Милошевић","НЕ","\"Душан Радовић\"","Ниш","Вера Анђелковић",8132,19,20,20,0,19,78,"I","СФО"]
[5,"Никша Чворовић","НЕ","\"Петар Петровић Његош\"","Зрењанин","Мариана Јашков",8029,20,19.6,20,0,15.3,74.9,"I","СФО"]
[6,"Михајло Марковић","НЕ","\"Ђорђе Крстић\"","Београд","Вера Вранић",8134,11,9,14.4,12,15,61.4,"I","СФО"]
[7,"Богдан Љубинковић","НЕ"," \"Кадињача\""," Лозница","Селимир Лазић",8015,17,9,20,3,11.8,60.8,"I","СФО"]
[8,"Јован Палибрк","НЕ","\"М. Павловић\"","Чачак","Зорица Миловановић",8021,17,10.2,20,6,7.5,60.7,"I","СФО"]
[9,"Александар Рашковић","НЕ"," \"10. октобар\"","Суботица","Золтан Биро",8035,19,3,20,0,16.7,58.7,"I","СФО"]
[10,"Ана Бојковић","НЕ","\"Стевица Јовановић\"","Панчево","Александра Чакован",8104,15,14,13,0,15.5,57.5,"I","СФО"]
[11,"Милан Лемић","НЕ"," \"Петар Кочић\"","Инђија","Светозар Трескавица",8154,20,12,20,0,5.5,57.5,"I","СФО"]
[12,"Милена Стојанов","НЕ","\"Момчило Поповић-Озрен\"","Параћин","Иван Стевановић",8047,20,5,20,3,9.15,57.15,"I","СФО"]
[13,"Марко Рашковић","НЕ"," \"Јеврем Обреновић\"        ","Шабац","Биљана Гајић",8025,17,0,13,20,6,{"$f":"H17+I17+J17+K17+L17","v":56},"II"]
[14,"Тијана Катић","НЕ","\"Васа Живковић\"","Панчево","Вера Станоевски",8014,12,20,17.5,0,6,55.5,"II"]
[15,"Милан Стојановић","НЕ","\"Бранко Радичевић\"","Владичин Хан","Владица Спасић",8052,17,20,3,15,0,55,"II"]
[16,"Сава Тодоровић","НЕ","\"Трећи крагујевачки батаљон\"","Крагујевац","Валентина Рацић",8059,20,0,16,3,15.9,54.9,"II"]
[17,"Ана Сибиновић","НЕ"," \"Владислав Рибникар\"","Београд","Данијела Савић",8082,16,3,20,0,15.5,54.5,"II"]
[18,"Сара Момчиловић","НЕ","\"Светолик Ранковић\"","Аранђеловац","Маријана Ђокић",8053,17,9,1.5,9,17.7,54.2,"II"]
[19,"Бојана Марковић","НЕ","\"С. Маринковић\"","Београд","Мирјана Кисјелица",8112,20,3,19,0,11.1,53.1,"II"]
[20,"Симона Ћировић","НЕ","\"Радоје Домановић\"","Београд","Ранка Рајковић",8120,20,0,20,3,9.7,52.7,"II"]
[21,"Вељко Јоцић","НЕ","\"Стефан Немања''","Ниш","Миодраг Нинић",8042,18,7,18,3,5.5,51.5,"II"]
[22,"Марко Милутин","НЕ","\"Петар Петровић Његош\"","Зрењанин","Мариана Јашков",8115,18,5,18,0,10.45,51.45,"II"]
[23,"Петар Павловић","НЕ"," \"Доситеј Обрадовић\"","Пожаревац","Андрејана Милић",8006,20,3,11.5,0,16.5,51,"II"]
[24,"Растко Павловић","НЕ","\"С. Бајић Паја\"","Сремска Митровица","Драган Зукић",8149,17,9,20,0,5,51,"II"]
[25,"Стефан Ћурчић","НЕ","\"И. Бирчанин\"","Београд","Драгана Михајловић",8072,3,20,20,0,6.5,49.5,"II"]
[26,"Огњен Ћулибрк","НЕ","\"Вељко Дугошевић\"","Рума","Сандра Новаковић",8111,4,12,11.5,1,20,48.5,"II"]
[27,"Лазар Марковић","НЕ"," “Нада Поповић”","Крушевац","Бојан Варинац ",8122,17,9,20,0,1.8,47.8,"II"]
[28,"Уна Добријевић","НЕ"," \"Ж. Зрењанин\"","Апатин","Боро Булат ",8123,17,5,16,2,7.5,47.5,"II"]
[29,"Никола Драгутиновић","НЕ","\"Бошко Буха\"","Ивање","Жељко Филиповић",8040,20,6,20,0,1,47,"II"]
[30," Стеван Маринковић","НЕ"," \"Николај Велимировић\"","Шабац","Александар Пузовић",8002,17,8,11,3,7.5,46.5,"II"]
[31,"Нина Цвијовић","НЕ","\"Емилија Остојић\"","Пожега","Гордана Николић",8049,17,9,16,1,3.5,46.5,"II"]
[32,"Борислав Барош","НЕ","\"Кнегиња Милица\"","Београд","Даница Петровић",8138,2,3,4.5,20,16.9,46.4,"II"]
[33,"Страхиња Соколовић","НЕ","\"Д. Максимовић\"","Зајечар","Младен Шљивовић",8100,20,0,19,3,4,46,"III"]
[34,"Ања Тртовић","НЕ","\"Живко Љујић\"","Нова Варош","Џемила Туркмановић",8118,17,0,18,1,10,46,"III"]
[35,"Урош Стојановић","НЕ","\"Вук Караџић\"","Неготин","Наташа Ђорђ. Паовић",8130,18,3,11.5,3,10.3,45.8,"III"]
[36,"Вељко Симић","НЕ","\"Лаза Костић\"","Београд","Ђорђе Ћипаризовић",8024,18,5,20,0,2.7,45.7,"III"]
[37,"Марко Куљић","НЕ","\"Доситеј Обрадовић\"","Београд","Зорица Теохаревић",8141,17,0,16,0,12.5,45.5,"III"]
[38,"Катарина Стојадиновић","НЕ","\"Љупче Николић''","Алексинац","Александра Вуковић",8119,5,2,16,3,19.3,45.3,"III"]
[39,"Никола Бјелица","НЕ","\"2. Октобар\"","Зрењанин","Дарко Радованчевић",8075,15,2,20,0,7.5,44.5,"III"]
[40,"Војин Бојић","НЕ","\"Ђуро Стругар\"","Београд","Зоран Дивац",8001,17,4,19,3,1,44,"III"]
[41,"Богдан Богдановић","НЕ","'Вожд Карађорђе''","Ниш","Биљана Богдановић",8091,2,9,20,9,3.5,43.5,"III"]
[42,"Јован Степановић","НЕ","\"Младост\"","Београд","Слађан Игњатовић",8032,20,3,11,0,8.9,42.9,"III"]
[43,"Катарина Добросављевић","НЕ","\"Цар Константин''","Ниш","Славица Томић",8077,16,0,11,2,13.85,42.85,"III"]
[44," Вељко Богдановић","НЕ","\"Петар Враголић\"","Љубовија","Митра С. Грујић",8133,20,6,4,0,11.5,41.5,"III"]
[45,"Петар Илић","НЕ","\"Бранко Радичевић\"","Београд","Слађан Игњатовић",8145,20,0,9.5,0,12,{"$f":"H49+I49+J49+K49+L49","v":41.5},"III"]
[46,"Сара Анђелковић","НЕ","\"Коста Ђукић\"","Београд","Зоран Ракић",8142,14,2,20,0,4.85,40.85,"III"]
[47,"Анђела Нешић","НЕ"," \"Никола Тесла\"","Београд","Весна Манић",8033,15,4,11.5,0,10.1,40.6,"III"]
[48,"Александар Станојковић","НЕ","\"Бранко Радичевић\"","Панчево","Љиљана Јанковић",8008,16,3,9.5,6,6,40.5,"III"]
[49,"Петар Крстић","НЕ","\"Стеван Сремац\"","Београд","Видосав Поповић",8074,20,3,7,0,10.5,40.5,"III"]
[50," Дарио Радојчић","НЕ"," \"Николај Велимировић\"","Шабац","Јово Михајловић",8016,14,3,0,20,2.1,39.1,"III"]
[51,"Никола Марјановић","НЕ","'Бубањски хероји''","Ниш","Југослав Ђорђевић",8028,14,3,16,3,3,39,"III"]
[52,"Никола Петровић","НЕ","\"Милован Глишић\"","Ваљево","Невена Смолчић",8043,0,8,16,0,14,38,"III"]
[53,"Милош Бисенић","НЕ","\"Бубањски хероји''","Ниш","Југослав Ђорђевић",8095,6,3,20,2,6.6,37.6,"III"]
[54,"Михајло Слијепчевић","НЕ","\"Бранко Радичевић\"","Панчево","Љиљана Јанковић",8121,18,3,11.5,0,5.1,37.6,"III"]
[55," Ана Ђукановић","НЕ","\"Петар Враголић\"","Љубовија","Митра С. Грујић",8011,20,0,13,2,2.5,37.5,"III"]
[56,"Ленка Николић ","НЕ","\"Милован Глишић\"","Ваљево","Невена Смолчић",8081,2,0,18.1,0,16.5,{"$f":"H60+I60+J60+K60+L60","v":36.6},"III"]
[57,"Војин Прљевић","НЕ","\"С. Маринковић\"","Београд","Мирјана Кисјелица",8083,12,0,20,3,1,36,"III"]
[58,"Томислав Станић","НЕ"," \"Јован Цвијић\""," Лозница","Миленко Ђуровић",8153,14,7,13,2,0,36,"III"]
[59,"Филип Перковић","НЕ","\"Стеван Дукић“","Београд","Снежана Ивановић",8076,7,6,0.5,20,2.2,35.7,"III"]
[60,"Филип Радовић","НЕ","\"Борислав Пекић\"","Београд","Јовановић Братислав",8090,14,0,20,0,1,35,"Похвала"]
[61,"Иван Мајер","НЕ","\"Јелена Ћетковић\"","Београд","Љиљана Марковић",8061,18,3,10.5,0,3,34.5,"Похвала"]
[62,"Алекса Мишић","НЕ","\"20. октобар\"","Београд","Маријета Ђаковић",8012,20,5,1,0,8.3,34.3,"Похвала"]
[63,"Петар Бранковић","НЕ","\"Деспот Стефан Високи\"","Деспотовац","Сузана Милојевић",8031,11,5,11.5,3,2.5,33,"Похвала"]
[64,"Маша Бугарендић","НЕ"," \"Иво Андрић\"","Београд","Љиљана Костић",8087,5,5,20,0,3,33,"Похвала"]
[65,"Урош Милиновић","НЕ","\"Јован Јовановић Змај\"","Зрењанин","Даниел Парађеновић",8098,15,3,8.5,0,6.5,33,"Похвала"]
[66,"Милица Пауновић","НЕ","\"Ј.Ј.Змај\"","Свилајнац","Ленка Николић",8129,7,4,3,4,14.9,32.9,"Похвала"]
[67,"Милица Поповић","НЕ","\"Краљ Александар I\"","Београд","Биљана Милошевић",8144,14,4,13,1,0.5,32.5,"Похвала"]
[68,"Жељко Чукић","НЕ","\"Д. Максимовић\"","Зајечар","Младен Шљивовић",8150,4,0,20,0,7.9,31.9,"Похвала"]
[69,"Матеја Оташевић","НЕ","\"Д. Максимовић\"","Прибој","Братислав Бојанић",8117,2,0,13,0,16.8,31.8,"Похвала"]
[70,"Емилија Здравковић ","НЕ"," \"Нада Поповић\"","Крушевац","Бојан Варинац ",8020,8,3,9,3,8.6,31.6,"Похвала"]
[71,"Ива Матијевић","НЕ","\"К.Александар I\"","Горњи Милановац","Зоран Недељковић",8147,2,8,13,0,8.3,31.3,"Похвала"]
[72,"Марта Марић","НЕ","\"М. Кушић\"","Ивањица","Верица Спасојевић",8140,2,5,16,3,5.2,31.2,"Похвала"]
[73,"Ана Живковић","НЕ","\"Мирослав Антић\"","Београд","Звездана Пашајлић",8003,2,1,14,0,13,30,"Похвала"]
[74,"Вук Николић","НЕ","\"Радоје Домановић\"","Крагујевац","Јасмина Јовичић",8101,2,6,0,20,2,30,"Похвала"]
[75,"Јана Ненић","НЕ","\"Б. Радичевић\"","Београд","Мирјана Кисјелица",8069,2,6,10.5,1,10.3,29.8,"Похвала"]
[76,"Анђела Радека","НЕ","\"Васа Пелагић\"","Београд","Љиљана Пајовић Јовановић",8026,14,5,1,0,9.5,29.5,"Похвала"]
[77,"Mилица Станковић","НЕ","\"Свети Сава\"","Л.Шор","Мирјана Ђукић",8068,4,3,11.5,3,7.5,{"$f":"H81+I81+J81+K81+L81","v":29},"Похвала"]
[78,"Огњен Павловић","НЕ","\"Вељко Дугошевић\"","Београд","Зоран Јовичић",8109,14,0,10,0,5,29,"Похвала"]
[79,"Милица Шомођа","НЕ"," \"14. октобар\"","Београд","Борис Милошeвић",8044,2,0,9,2,15.7,28.7,"Похвала"]
[80,"Алекса Ђорђевић Теодоровић","НЕ","\"Јелена Ћетковић\"","Београд","Љиљана Марковић",8022,16,0,2,0,10.5,28.5]
[81,"Никола Бута","НЕ","\"Радоје Домановић\"","Београд","Ранка Рајковић",8041,14,3,0.5,0,11,28.5]
[82,"Јелена Стекић","НЕ"," \"Мика Митровић\"","Богатић","Биљана Срдановић",8056,2,3,18,0,5.5,28.5]
[83,"Матеја Кузмић","НЕ","\"Коста Ђукић\"","Београд","Зоран Ракић",8007,2,5,7.5,1,12.6,28.1]
[84,"Вукоје Живковић","НЕ","\"Бранко Крсмановић\"","Д.Мутница","Марина Васић",8017,2,0,11,0,15,28]
[85,"Алекса Милојевић","НЕ","\"Борислав Пекић\"","Београд","Снежана Кутлашић",8073,17,5,0,0,5.2,27.2]
[86,"Никола Илић ","НЕ","\"Горан Остојић\"","Јагодина","Светлана Станојевић",8067,14,5,0.5,2,5.5,27]
[87,"Матеја Стевановић","НЕ","\"Радоје Домановић\"","Крагујевац","Јасмина Јовичић",8105,2,3,15.5,3,3.25,26.75]
[88,"Иван Ђурђевић","НЕ","\"Ђура Јакшић\"","Ћуприја","Предраг Милеуснић",8110,20,5,0.5,0,1.15,26.65]
[89,"Софија Мојовић","НЕ","\"Јован Миодраговић\"","Београд","Мирјана Николић",8009,2,0,11.5,5,8.1,26.6]
[90,"Дарио Вајда","НЕ"," \"Јован Микић\"","Суботица","Даниел Баровић",8045,20,0,0.5,0,6,26.5]
[91," Урош Филиповић","НЕ"," \"Вук Караџић\"","Шабац","Борисав Панић",8099,0,0,11.5,0,14.3,25.8]
[92,"Душко Филиповић","НЕ","\"Михајло Пупин\"","Идвор","Борислав Жарков",8048,2,3,11,0,9.5,25.5]
[93,"Богдан Познанић","НЕ","\"Стеван Сремац\"","Београд","Љубодраг Богавац",8086,16,7,0.5,0,2,25.5]
[94,"Емилија Ковачевић","НЕ","И. Бирчанин","Београд","Драгана Михајловић",8152,2,3,15.5,0,4.5,25]
[95,"Мила Кокановић","НЕ","\"Стеван Синђелић\"","Београд","Саша Шуњеварић",8078,1,3,10.5,4,6.3,24.8]
[96,"Лука Лехотски","НЕ","\"Никола Тесла\"","Нови Сад","Слободан Божић",8046,14,0,8,0,2.5,24.5]
[97,"Лука Милутиновић","НЕ"," \"Херој Мирко Томић\" ","Доњи Крчин","Андријана Николић",8064,2,2,11.5,4,4.5,24]
[98,"Леа Ајзенбергер","НЕ","\"Светозар Марковић Тоза\"","Нови Сад","З. Божић Димитријевић",8071,11.5,0,7,3,2.25,23.75]
[99," Ленка Росић","НЕ"," \"Николај Велимировић\"","Шабац","Јово Михајловић",8094,0,0,10.5,0,12.5,23]
[100,"Петар Поповић","НЕ","\"Вук Караџић\"","Пирот","Весна Цветковић",8054,11,0,11.5,0,0,22.5]
[101,"Лена Богдановић","НЕ","\"Б. Радичевић\"","Београд","Мирјана Кисјелица",8139,2,0,10,0,10,22]
[102,"Алекса Алимпијевић","НЕ","\"Деспот Стефан Високи\"","Деспотовац","Сузана Милојевић",8051,6,0,11,0,4.5,21.5]
[103,"Виктор Кузмановић","НЕ"," \"Васа Пелагић\"","Падеж","Ненад Симић",8084,2,6,11.5,0,1.1,20.6]
[104,"Милица Шајкић","НЕ","\"Исидора Секулић\"","Панчево","Зорица Станкић",8057,2,0,11,2,2.3,17.3]
[105,"Илија Серафимовић","НЕ","\"Мирослав Антић Мика\"","Панчево","Јасмина Кековић",8055,2,0,3.5,3,8.3,16.8]
[106,"Тамара Табаковић","НЕ","\"Милош Црњански\"","Нови Сад","Даниела Ивковић",8010,4,0,12,0,0.5,16.5]
[107,"Наташа Филиповић","НЕ"," \"Јован Курсула\"","Варварин","Ивана Кркић",8066,2,2,8.5,0,4,16.5]
[108,"Коста Стојановић","НЕ","\"Ратко Митровић\"","Београд","Зоран Дивац",8013,10,0,0.5,0,5.5,16]
[109,"Никола Милошевић","НЕ","\"Стефан Немања''","Ниш","Миодраг Нинић",8137,3,6,1.5,3,2.5,{"$f":"H113+I113+J113+K113+L113","v":16}]
[110,"Душан Влајић","НЕ","\"Кнез Лазар\"","Београд","Слободанка Николић Максимовић",8116,14,0,0,0,1.2,15.2]
[111,"Катарина Лазаревић","НЕ","\"Б. Ж. Милојевић''","Крупањ","Јасмина Милутиновић",8143,2,3,2.5,0,1.2,8.7]
[112,"Софија Савић","НЕ","\"М. Павловић\"","Чачак","Зорица Миловановић",8131,2,2,3,0,1.5,8.5]
[113,"Аранђел Јовичић","НЕ","\"Јован Поповић\"","Београд","Снежана Косачевић",8079,1,0,0.5,0,6.5,8]
[114,"Мила Обућина","НЕ","\"Живко Љујић\"","Нова Варош","Џемила Туркмановић",8085,2,0,0.5,0,2.7,5.2]

{"sheet":"разред 8п","index":4,"n_rows":43,"n_cols":15,"rows_kept":43}
[]
[null,"Резултати 8. разред - посебна одељења"]
[]
["Р. Бр.","Име и презиме","Пос.Од.","Основна школа","Место","Име и презиме\nнаставника","Шифра","Зад.1","Зад.2","Зад.3","Зад.4","Зад.5","Ук."]
[1,"Лазар Брајовић","ДА","\"Математичка гимназија\"","Београд","Вишња Јовановић",8114,20,12,18,20,20,{"$f":"H5+I5+J5+K5+L5","v":90},"I","СФО"]
[2,"Вук Хип","ДА","\"Математичка гимназија\"","Београд","Вишња Јовановић",8113,20,18,13,18,18,87,"I","СФО"]
[3,"Ања Шушњар","ДА","\"Математичка гимназија\"","Београд","Вишња Јовановић",8124,19,10,18,20,20,87,"I","СФО"]
[4,"Вук Долијановић","ДА","\"Математичка гимназија\"","Београд","Вишња Јовановић",8102,20,10,20,20,16.8,86.8,"I","СФО"]
[5,"Тара Бискуповић","ДА","\"Математичка гимназија\"","Београд","Вишња Јовановић",8127,17,13,18,20,15.1,83.1,"II","СФО"]
[6,"Вукашин Ђиновић","ДА","\"Ј.Ј. Змај\"","Нови Сад","Драгана Сумзер",8155,20,20,20,3,18,81,"II","СФО"]
[7,"Марко Сладојевић","ДА","\"Ј.Ј. Змај\"","Нови Сад","Драгана Сумзер",8063,4,20,14,17,18.8,73.8,"II","СФО"]
[8,"Ђорђе Паројчић","ДА","\"Математичка гимназија\"","Београд","Вишња Јовановић",8070,14,6,16.5,16,14,66.5,"II","СФО"]
[9,"Ања Мијаиловић","ДА","\"Прва крагујевачка гимназија\"","Крагујевац","Весна Спасојевић",8023,12,17,7,20,10.2,66.2,"II","СФО"]
[10,"Кристина Ристић","ДА","\"Математичка гимназија\"","Београд","Вишња Јовановић",8148,2,8,18,20,17.2,65.2,"II"]
[11,"Александар Бркић","ДА","\"Математичка гимназија\"","Београд","Вишња Јовановић",8125,20,7,16,3,19,65,"III"]
[12,"Вукашин Пантелић","ДА","\"Математичка гимназија\"","Београд","Вишња Јовановић",8027,18,11.6,20,3,11.9,64.5,"III"]
[13,"Петар Марјановић","ДА","\"Математичка гимназија\"","Београд","Вишња Јовановић",8088,17,12,16,2,15,62,"III"]
[14,"Огњен Шкрбић","ДА","\"Математичка гимназија\"","Београд","Вишња Јовановић",8089,20,7,18,2,14,61,"III"]
[15,"Сташа Раденковић","ДА","Гимназија ''Светозар Марковић''","Ниш","Славољуб Митић",8136,15,12,18,0,"15",60,"III"]
[16,"Новак Стијепић","ДА","\"Математичка гимназија\"","Београд","Вишња Јовановић",8030,17,0,16.5,3,19,55.5,"III"]
[17,"Ива Јовановић","ДА","\"Прва крагујевачка гимназија\"","Крагујевац","Весна Спасојевић",8126,2,7,7,20,19,55,"III"]
[18,"Андрија Живадиновић","ДА","Гимназија ''Светозар Марковић''","Ниш","Славољуб Митић",8103,2,12,20,0,20,54,"III"]
[19,"Неда Михаиловић","ДА","\"Прва крагујевачка гимназија\"","Крагујевац","Весна Спасојевић",8080,17,12,11.5,6,6.25,52.75,"III"]
[20,"Никола Лазић","ДА","\"Математичка гимназија\"","Београд","Вишња Јовановић",8108,18,5,20,3,6.5,52.5,"III"]
[21,"Иван Покорник","ДА","\"Математичка гимназија\"","Београд","Вишња Јовановић",8050,16,3,20,0,12,51,"Похвала"]
[22,"Марко Попевић","ДА","\"Математичка гимназија\"","Београд","Вишња Јовановић",8004,19.2,3,20,6,0,48.2,"Похвала"]
[23,"Теодора Нађ","ДА","\"Ј.Ј. Змај\"","Нови Сад","Драгана Сумзер",8034,16,12,13,0,7,48,"Похвала"]
[24,"Михајло Марков","ДА","\"Математичка гимназија\"","Београд","Вишња Јовановић",8135,4,3,20,0,19,46,"Похвала"]
[25,"Андрија Максимовић","ДА","\"Прва крагујевачка гимназија\"","Крагујевац","Весна Спасојевић",8128,20,3,18,3,1.2,45.2,"Похвала"]
[26,"Маша Настић","ДА","Гимназија ''Светозар Марковић''","Ниш","Славољуб Митић",8036,15,10,3.5,3,12.65,44.15,"Похвала"]
[27,"Алексија Ђенић","ДА","Гимназија ''Светозар Марковић''","Ниш","Славољуб Митић",8093,17,0,18,0,8.25,43.25,"Похвала"]
[28,"Ђорђе Јовановић","ДА","\"Математичка гимназија\"","Београд","Вишња Јовановић",8060,15,8,8,4,7.5,42.5]
[29,"Ана Кљајић","ДА","\"Ј.Ј. Змај\"","Нови Сад","Драгана Сумзер",8062,16,8,0,3,14.9,41.9]
[30,"Дорис Ковачевић","ДА","\"Математичка гимназија\"","Београд","Вишња Јовановић",8151,16,0,16,0,9.5,41.5]
[31,"Мина Миленковић","ДА","\"Гимназија Краљево\"","Краљево","Мирјана Јанковић",8106,14,6,9.5,1,7.25,37.75]
[32,"Јана Матић","ДА","\"Ваљевска гимназија\"","Ваљево","Милка Нинковић",8146,10,3,14.5,3,5.3,35.8]
[33,"Стефан Николић","ДА","\"Прва крагујевачка гимназија\"","Крагујевац","Весна Спасојевић",8018,11,5,14.5,2,1.7,34.2]
[34,"Михајло Живковић","ДА","\"Вук Караџић\"","Лесковац","Драган Голубовић",8107,17,3,5,0,2,27]
[35,"Лена Јоковић","ДА","Гимназија ''Светозар Марковић''","Ниш","Славољуб Митић",8039,20,0,0.5,0,6.3,26.8]
[36,"Сања Крндија","ДА","\"Математичка гимназија\"","Београд","Вишња Јовановић",8092,2,3,0.5,1,15.5,22]
[37,"Јанко Јоксимовић","ДА","\"Прва крагујевачка гимназија\"","Крагујевац","Весна Спасојевић",8065,4,0,11.5,3,1,19.5]
[38,"Даница Вугделија","ДА","\"Математичка гимназија\"","Београд","Вишња Јовановић",8097,4,6,3,0,4.25,17.25]
[39,"Игор Амиџић","ДА","\"Ј.Ј. Змај\"","Нови Сад","Драгана Сумзер",8156,6,3,0.5,2,1.2,12.7]